fUSD/lending_fUSD_20251211
["ID","MTS","AMOUNT","RATE_DAILY","PERIOD"]
[398232186,1765441845413,-500.0,0.00038356,60]
[398232187,1765441845422,-500.0,0.00038356,60]
[398232188,1765441845432,-500.0,0.00038356,60]
[398232189,1765441845443,-500.0,0.00038356,60]
[398232190,1765441845452,-500.0,0.00038356,60]
[398232191,1765441845462,-504.02346718,0.00038356,60]
[398232192,1765441845471,-500.0,0.00038356,60]
[398232193,1765441845481,-500.0,0.00038356,60]
[398232194,1765441845491,-500.0,0.00038356,60]
[398232195,1765441845500,-500.0,0.00038356,60]
[398232196,1765441845511,-500.0,0.00038356,60]
[398232197,1765441845521,-500.0,0.00038356,60]
[398232198,1765441845533,-502.97572106,0.00038356,60]
[398232199,1765441845543,-500.0,0.00038356,60]
[398232200,1765441845553,-500.0,0.00038356,60]
[398232201,1765441845563,-500.0,0.00038356,60]
[398232202,1765441845572,-500.0,0.00038356,60]
[398232203,1765441845582,-500.0,0.00038356,60]
[398232204,1765441845591,-500.0,0.00038356,60]
[398232205,1765441845600,-500.0,0.00038356,60]
[398232206,1765441845610,-500.0,0.00038356,60]
[398232207,1765441845619,-506.03505453,0.00038356,60]
[398232208,1765441845631,-500.0,0.00038356,60]
[398232209,1765441845641,-500.0,0.00038356,60]
[398232210,1765441845650,-500.0,0.00038356,60]
[398232211,1765441845660,-500.0,0.00038356,60]
[398232212,1765441845671,-500.0,0.00038356,60]
[398232213,1765441845681,-500.0,0.00038356,60]
[398232214,1765441845690,-500.0,0.00038356,60]
[398232215,1765441845700,-500.0,0.00038356,60]
[398232216,1765441845709,-500.0,0.00038356,60]
[398232217,1765441845719,-500.0,0.00038356,60]
[398232218,1765441845728,-500.0,0.00038356,60]
[398232219,1765441845739,-500.0,0.00038356,60]
[398232220,1765441845748,-500.0,0.00038356,60]
[398232221,1765441845757,-500.0,0.00038356,60]
[398232222,1765441845768,-150.0,0.00038378,7]
[398232223,1765441845777,-150.0,0.00038425,7]
[398232224,1765441845786,-150.0,0.00038425,7]
[398232225,1765441845796,-797.09,0.000385,30]
[398232226,1765441845806,-1603.0,0.00038522,2]
[398232227,1765441845816,-611.0,0.00038522,2]
[398232228,1765441845826,-150.0,0.00038527,7]
[398232229,1765441845835,-608.47863704,0.00038573,2]
[398232230,1765441845845,-1007.0,0.000386,7]
[398232231,1765441845854,-552.86,0.0003863,2]
[398232232,1765441845863,-1216.3,0.0003863,2]
[398232233,1765441845873,-356.16,0.0003863,2]
[398232234,1765441845882,-340.5,0.0003863,2]
[398232235,1765441845892,-150.0,0.00038709,7]
[398232236,1765441845902,-150.0,0.00038709,7]
[398232237,1765441845913,-200.0,0.0003874,2]
[398232238,1765441845924,-200.0,0.0003874,2]
[398232239,1765441845934,-200.0,0.0003874,2]
[398232240,1765441845943,-150.0,0.00038751,7]
[398232241,1765441845952,-350.711562,0.00038841,2]
[398232242,1765441845960,-150.0,0.00038937,7]
[398232244,1765441845971,-150.0,0.00038937,7]
[398232245,1765441845984,-150.0,0.00038937,7]
[398232246,1765441845993,-150.0,0.00038937,7]
[398232247,1765441846003,-150.0,0.00038937,7]
[398232248,1765441846012,-150.0,0.00039123,7]
[398232249,1765441846023,-200.0,0.00039127,2]
[398232250,1765441846032,-200.0,0.00039127,2]
[398232251,1765441846042,-200.0,0.00039127,2]
[398232252,1765441846052,-150.0,0.00039165,7]
[398232253,1765441846062,-150.0,0.00039165,7]
[398232254,1765441846072,-480.43,0.00039178,2]
[398232255,1765441846083,-480.43,0.00039178,2]
[398232256,1765441846093,-480.43,0.00039178,2]
[398232257,1765441846103,-480.43,0.00039178,2]
[398232258,1765441846113,-480.43,0.00039178,2]
[398232259,1765441846123,-480.43,0.00039178,2]
[398232260,1765441846132,-150.0,0.00039347,7]
[398232261,1765441846142,-350.711562,0.00039425,2]
[398232262,1765441846152,-150.0,0.00039449,7]
[398232263,1765441846161,-150.0,0.00039449,7]
[398232264,1765441846171,-170.25,0.00039452,2]
[398232265,1765441846181,-178.13,0.00039452,2]
[398232266,1765441846191,-150.08,0.00039452,2]
[398232267,1765441846201,-1215.91,0.00039452,2]
[398232268,1765441846211,-178.13,0.00039452,2]
[398232269,1765441846221,-10716.37,0.00039484,2]
[398232270,1765441846231,-150.0,0.00039496,7]
[398232271,1765441846240,-150.0,0.000395,30]
[398232272,1765441846250,-200.0,0.00039518,2]
[398232273,1765441846260,-200.0,0.00039518,2]
[398232274,1765441846270,-200.0,0.00039518,2]
[398232275,1765441846280,-150.0,0.0003962,7]
[398232276,1765441846289,-150.0,0.0003962,7]
[398232277,1765441846299,-304.53,0.00039654,2]
[398232278,1765441846308,-150.0,0.00039868,7]
[398232279,1765441846318,-500.0,0.00039909,60]
[398232280,1765441846328,-200.0,0.00039913,2]
[398232281,1765441846338,-200.0,0.00039913,2]
[398232282,1765441846347,-200.0,0.00039913,2]
[398232283,1765441846356,-150.0,0.00039962,7]
[398232284,1765441846365,-150.0,0.00039962,7]
[398232285,1765441846374,-150.0,0.00039962,7]
[398232286,1765441846384,-766.71654582,0.0004,60]
[398232287,1765441846393,-150.38,0.0004,2]
[398232288,1765441846402,-350.711562,0.0004001,2]
[398232289,1765441846411,-250.48357596,0.0004005,7]
[398232290,1765441846421,-150.0,0.00040075,7]
[398232291,1765441846430,-150.0,0.00040075,7]
[398232293,1765441846439,-703.56,0.00040137,2]
[398232295,1765441846451,-1406.79,0.00040137,2]
[398232296,1765441846461,-150.0,0.00040167,7]
[398232297,1765441846471,-9910.84,0.00040199,5]
[398232298,1765441846480,-500.0,0.00040199,60]
[398232299,1765441846490,-426.31966046,0.00040199,60]
[398232300,1765441846499,-1585.5,0.00040199,60]
[398232301,1765441846510,-797.09,0.000402,30]
[398232302,1765441846519,-150.0,0.00040241,7]
[398232303,1765441846529,-150.0,0.00040274,2]
[398232304,1765441846539,-150.21,0.00040274,2]
[398232305,1765441846549,-150.0,0.00040274,2]
[398232306,1765441846559,-463.81,0.00040274,2]
[398232307,1765441846568,-178.13,0.00040274,2]
[398232308,1765441846577,-170.32,0.00040274,2]
[398232310,1765441846587,-2431.13,0.00040274,2]
[398232311,1765441846595,-150.0,0.00040274,2]
[398232312,1765441846605,-150.0,0.00040274,2]
[398232313,1765441846614,-463.81,0.00040274,2]
[398232314,1765441846623,-150.0,0.00040274,2]
[398232315,1765441846632,-178.13,0.00040274,2]
[398232316,1765441846642,-150.0,0.00040274,2]
[398232317,1765441846651,-150.0,0.00040274,2]
[398232318,1765441846660,-463.81,0.00040274,2]
[398232319,1765441846669,-150.0,0.00040274,2]
[398232320,1765441846679,-178.13,0.00040274,2]
[398232321,1765441846688,-150.0,0.00040274,2]
[398232322,1765441846699,-195.5,0.00040274,2]
[398232323,1765441846709,-357.11,0.00040274,2]
[398232324,1765441846718,-150.0,0.00040274,2]
[398232325,1765441846727,-150.0,0.00040274,2]
[398232326,1765441846736,-150.0,0.00040274,2]
[398232327,1765441846748,-150.0,0.00040474,7]
[398232328,1765441846760,-150.0,0.00040474,7]
[398232329,1765441846769,-150.0,0.00040531,7]
[398232330,1765441846779,-150.0,0.00040531,7]
[398232331,1765441846788,-300.0,0.00040548,2]
[398232332,1765441846797,-350.711562,0.00040594,2]
[398232333,1765441846806,-150.0,0.00040614,7]
[398232334,1765441846816,-688.21,0.00040899,30]
[398232335,1765441846826,-322.07522611,0.00040899,60]
[398232336,1765441846838,-151.0,0.00040899,120]
[398232337,1765441846855,-893.5125517,0.000409,2]
[398232338,1765441846865,-267.25840344,0.00040986,7]
[398232339,1765441846874,-154.82397653,0.00040986,7]
[398232340,1765441846884,-169.99279709,0.00040986,7]
[398232341,1765441846893,-150.0,0.00040986,7]
[398232342,1765441846903,-151.17525831,0.00040986,7]
[398232343,1765441846912,-150.0,0.00040986,7]
[398232344,1765441846921,-150.0,0.00040986,7]
[398232345,1765441846930,-150.0,0.00040986,7]
[398232346,1765441846940,-150.0,0.00040986,7]
[398232347,1765441846951,-150.0,0.00040986,7]
[398232348,1765441846960,-9910.84,0.00040998,5]
[398232349,1765441846971,-500.0,0.00040998,60]
[398232350,1765441846984,-1000.0,0.00040998,3]
[398232351,1765441846993,-1585.5,0.00040998,60]
[398232352,1765441847002,-9910.84,0.00040999,5]
[398232353,1765441847012,-9910.84,0.00040999,5]
[398232354,1765441847022,-9910.84,0.00040999,5]
[398232355,1765441847031,-9910.84,0.00040999,5]
[398232356,1765441847040,-9910.84,0.00040999,5]
[398232357,1765441847049,-9910.84,0.00040999,5]
[398232358,1765441847059,-9910.84,0.00040999,5]
[398232359,1765441847069,-9910.84,0.00040999,5]
[398232360,1765441847079,-9911.06027611,0.00040999,5]
[398232361,1765441847089,-500.0,0.00040999,60]
[398232362,1765441847098,-500.0,0.00040999,60]
[398232363,1765441847108,-500.0,0.00040999,60]
[398232364,1765441847117,-500.0,0.00040999,60]
[398232365,1765441847126,-500.0,0.00040999,60]
[398232366,1765441847135,-500.0,0.00040999,60]
[398232367,1765441847145,-230.70147611,0.00040999,60]
[398232368,1765441847155,-7000.0,0.00040999,7]
[398232369,1765441847164,-1585.5,0.00040999,60]
[398232370,1765441847175,-1585.5,0.00040999,60]
[398232371,1765441847184,-1585.5,0.00040999,60]
[398232372,1765441847194,-1585.5,0.00040999,60]
[398232373,1765441847204,-1585.5,0.00040999,60]
[398232374,1765441847214,-1585.5,0.00040999,60]
[398232375,1765441847224,-1585.5,0.00040999,60]
[398232376,1765441847234,-1585.5,0.00040999,60]
[398232377,1765441847243,-1585.69578232,0.00040999,60]
[398232378,1765441847253,-38013.15764436,0.00041,34]
[398232379,1765441847262,-629492.32932168,0.00041,30]
[398232380,1765441847477,-304.06693998,0.000159,2]
[398232381,1765441847487,-171.64074935,0.00029331,2]
[398232382,1765441847496,-1455.03001332,0.000324,120]
[398232383,1765441847508,-544.96998668,0.000324,120]
[398232384,1765441847519,-2000.0,0.000324,120]
[398232385,1765441847529,-500.0,0.00038356,60]
[398232386,1765441847538,-500.0,0.00038356,60]
[398232387,1765441847547,-500.0,0.00038356,60]
[398232388,1765441847557,-500.0,0.00038356,60]
[398232389,1765441847568,-500.0,0.00038356,60]
[398232390,1765441847580,-500.0,0.00038356,60]
[398232391,1765441847590,-500.0,0.00038356,60]
[398232392,1765441847600,-500.0,0.00038356,60]
[398232393,1765441847609,-500.0,0.00038356,60]
[398232394,1765441847619,-500.0,0.00038356,60]
[398232395,1765441847629,-500.0,0.00038356,60]
[398232396,1765441847639,-506.88597752,0.00038356,60]
[398232397,1765441847648,-500.0,0.00038356,60]
[398232398,1765441847664,-500.0,0.00038356,60]
[398232399,1765441847673,-500.0,0.00039909,60]
[398232400,1765441847682,-447.52533685,0.00040899,60]
[398232401,1765441847691,-6139312.52494303,0.00041,30]
[398232402,1765441847707,-500.0,0.00038356,60]
[398232403,1765441847716,-383217.03639627,0.00041,30]
[398232404,1765441847734,-500.0,0.00039909,60]
[398232405,1765441847745,-8260.1431426,0.00041,30]
[398232406,1765441847756,-25419.42459338,0.00041,30]
[398232407,1765441847811,226.21266891,0.0001347,2]
[398232408,1765441848012,-534.74828065,0.00016356,2]
[398232409,1765441848072,-606.19261828,0.00016356,2]
[398232410,1765441848083,-3439.16975584,0.00016356,2]
[398232411,1765441848095,-11680.13970747,0.00016356,2]
[398232412,1765441848104,-150.1607794,0.00016594,2]
[398232413,1765441848114,-822.35,0.00022,7]
[398232414,1765441848123,-1324.107,0.00032295,2]
[398232415,1765441848133,-1107.88422204,0.00035295,2]
[398232416,1765441848239,-304.06693998,0.00015919,2]
[398232417,1765441848249,-100.17111605,0.00029,7]
[398232418,1765441848261,-275.11464,0.00029,7]
[398232419,1765441848272,-447.06424395,0.00029,7]
[398232420,1765441848282,-216.11577796,0.00035295,2]
[398232421,1765441848291,-688.79997809,0.000361,14]
[398232422,1765441848308,-133.55002191,0.000361,14]
[398232423,1765441848318,-822.35,0.000383,14]
[398232424,1765441848328,-500.0,0.00038356,60]
[398232425,1765441848338,-500.0,0.00038356,60]
[398232426,1765441848348,-500.0,0.00038356,60]
[398232427,1765441848357,-500.0,0.00038356,60]
[398232428,1765441848366,-500.0,0.00038356,60]
[398232429,1765441848376,-500.0,0.00038356,60]
[398232430,1765441848386,-500.0,0.00038356,60]
[398232431,1765441848395,-507.43832306,0.00038356,60]
[398232432,1765441848408,-504.10510441,0.00038356,60]
[398232433,1765441848418,-500.0,0.00038356,60]
[398232434,1765441848427,-185.37361506,0.00038356,60]
[398232435,1765441848440,-316.83640198,0.00038356,60]
[398232436,1765441848450,-500.0,0.00038356,60]
[398232437,1765441848460,-500.0,0.00038356,60]
[398232438,1765441848470,-264.08519802,0.00038356,60]
[398232439,1765441862372,263.0,0.0001539,2]
[398232440,1765441863059,-240.92022172,0.000159,2]
[398232441,1765441863243,250.0,0.0001539,2]
[398232442,1765441865649,-363.86066911,0.000159,2]
[398232443,1765441867075,-176.22021998,0.000159,2]
[398232444,1765441870720,-210.45714246,0.000159,2]
[398232445,1765441872742,-354.00674292,0.000159,2]
[398232446,1765441874672,-447.79589464,0.000159,2]
[398232447,1765441876639,-201.50474477,0.000159,2]
[398232448,1765441880758,-20.0798644,0.000159,2]
[398232449,1765441880779,-149.94499909,0.000159,2]
[398232450,1765441882604,-482.5116181,0.000159,2]
[398232451,1765441884638,-354.66765515,0.000159,2]
[398232452,1765441885105,-10000.01,0.000159,2]
[398232453,1765441885312,-3699.75567234,0.000159,2]
[398232454,1765441885324,-2600.49865532,0.000159,2]
[398232455,1765441885334,-300.0,0.0001595,2]
[398232456,1765441885343,-422.1963,0.00015999,2]
[398232457,1765441885354,-500.0,0.00015999,2]
[398232458,1765441885363,-500.0,0.00015999,2]
[398232459,1765441885372,-500.0,0.00015999,2]
[398232460,1765441885382,-500.0,0.00015999,2]
[398232461,1765441885392,-500.0,0.00015999,2]
[398232462,1765441885404,-477.55937234,0.00015999,2]
[398232463,1765441888046,-22.44062766,0.00015999,2]
[398232464,1765441888083,-250.0,0.00015999,2]
[398232465,1765441888112,-300.0,0.00016192,2]
[398232466,1765441888141,-300.0,0.00016192,2]
[398232467,1765441888172,-300.0,0.00016192,2]
[398232468,1765441888203,-1000.0,0.00016197,2]
[398232469,1765441899284,-165.13351912,0.00016198,2]
[398232470,1765441901348,-437.57233115,0.00016198,2]
[398232471,1765441902000,229.33148918,0.00016197,2]
[398232472,1765441903444,-368.26601888,0.00016198,2]
[398232473,1765441906562,-249.64003827,0.00016198,2]
[398232474,1765441909599,-250.63492586,0.00016198,2]
[398232475,1765441912278,-268.52863051,0.00016198,2]
[398232476,1765441914852,5425.7972555,0.000159,2]
[398232477,1765441914876,1254.5486445,0.000159,2]
[398232478,1765441915572,-170.57783045,0.00016198,2]
[398232479,1765441915891,500.0,0.00015999,2]
[398232480,1765441915936,268.52863051,0.00015999,2]
[398232481,1765441916649,-589.64670576,0.00016198,2]
[398232482,1765441916680,-150.96,0.00016198,2]
[398232483,1765441925180,518.5,0.00016077,2]
[398232484,1765441927297,604.78089066,0.00015999,2]
[398232485,1765441945673,500.0,0.00015628,2]
[398232486,1765441951707,6895.51569782,0.00016197,2]
[398232487,1765441951728,10000.01,0.00016197,2]
[398232488,1765441951749,10000.01,0.00016197,2]
[398232489,1765441951773,6549.50560218,0.00016197,2]
[398232490,1765441986338,10000.01,0.000159,2]
[398232491,1765441986366,10000.01,0.000159,2]
[398232492,1765442004478,-10000.01,0.000159,2]
[398232493,1765442004660,-10000.01,0.000159,2]
[398232494,1765442004765,-10000.01,0.000159,2]
[398232495,1765442004892,-10000.01,0.000159,2]
[398232497,1765442013624,-10000.01,0.000159,2]
[398232498,1765442013733,-10000.01,0.000159,2]
[398232499,1765442013835,-10000.01,0.000159,2]
[398232500,1765442013937,-10000.01,0.000159,2]
[398232502,1765442079254,-188.92226842,0.00015799,2]
[398232503,1765442079284,-300.0,0.00015899,2]
[398232504,1765442079313,-500.0,0.00015899,2]
[398232505,1765442079343,-326.45108181,0.00015899,2]
[398232506,1765442079375,-159.7745431,0.00015899,2]
[398232507,1765442079409,-500.0,0.00015899,2]
[398232508,1765442079441,-500.0,0.00015899,2]
[398232509,1765442079474,-500.0,0.00015899,2]
[398232510,1765442079504,-500.0,0.00015899,2]
[398232511,1765442079537,-500.0,0.00015899,2]
[398232512,1765442079568,-225.162431,0.00015899,2]
[398232513,1765442079602,-300.0,0.000159,2]
[398232514,1765442079623,-188.92226842,0.000159,2]
[398232515,1765442079648,-300.0,0.000159,2]
[398232516,1765442079662,-500.0,0.000159,2]
[398232517,1765442079677,-326.45108181,0.000159,2]
[398232518,1765442079688,-159.7745431,0.000159,2]
[398232519,1765442079699,-500.0,0.000159,2]
[398232520,1765442079711,-500.0,0.000159,2]
[398232521,1765442079724,-500.0,0.000159,2]
[398232522,1765442079734,-500.0,0.000159,2]
[398232523,1765442079746,-500.0,0.000159,2]
[398232524,1765442079757,-225.162431,0.000159,2]
[398232525,1765442079772,-300.0,0.000159,2]
[398232526,1765442079783,-999.38935134,0.000159,2]
[398232527,1765442085385,-10000.01,0.000159,2]
[398232528,1765442104342,-1200.0,0.00015898,2]
[398232529,1765442104372,-195.0,0.00015899,2]
[398232530,1765442104405,-500.0,0.00015899,2]
[398232531,1765442104441,-500.0,0.00015899,2]
[398232532,1765442104474,-500.0,0.00015899,2]
[398232533,1765442104508,-576.25263221,0.00015899,2]
[398232534,1765442104537,-300.0,0.00015899,2]
[398232535,1765442104566,-284.0,0.00015899,2]
[398232536,1765442104594,-250.0,0.000159,2]
[398232537,1765442113597,-1063.367453,0.0001582,2]
[398232538,1765442122993,-431.42216955,0.00015628,2]
[398232539,1765442182642,-68.57783045,0.00015628,2]
[398232540,1765442182670,-195.0,0.00015764,2]
[398232541,1765442182698,-195.0,0.00015893,2]
[398232542,1765442182728,-300.0,0.00015899,2]
[398232543,1765442183310,-3146.81995933,0.000159,2]
[398232544,1765442183420,-10000.01,0.000159,2]
[398232545,1765442183523,-10000.01,0.000159,2]
[398232546,1765442183627,-10000.01,0.000159,2]
[398232547,1765442183741,-10000.01,0.000159,2]
[398232548,1765442185590,-10000.01,0.000159,2]
[398232549,1765442185693,-10000.01,0.000159,2]
[398232550,1765442185785,-10000.01,0.000159,2]
[398232551,1765442185888,-10000.01,0.000159,2]
[398232552,1765442186005,-10000.01,0.000159,2]
[398232553,1765442188994,-302.0,0.0001582,2]
[398232554,1765442189033,-9396.01,0.000159,2]
[398232555,1765442189099,-10000.01,0.000159,2]
[398232556,1765442189198,-10000.01,0.000159,2]
[398232557,1765442189314,-10000.01,0.000159,2]
[398232558,1765442192179,-562.0,0.000159,2]
[398232559,1765442228040,-200.0,0.00015561,2]
[398232560,1765442228065,-23.64160118,0.00015561,2]
[398232561,1765442229449,-183.75839882,0.00015561,2]
[398232562,1765442229471,-37.27496544,0.00015561,2]
[398232563,1765442231987,-177.79883456,0.00015561,2]
[398232564,1765442232013,-6.64964047,0.00015561,2]
[398232565,1765442233509,-216.38189013,0.00015561,2]
[398232566,1765442233539,-62.43331698,0.00015561,2]
[398232567,1765442235084,-165.79204585,0.00015561,2]
[398232568,1765442238544,-3.0583344,0.00015561,2]
[398232569,1765442238568,-191.70464449,0.00015561,2]
[398232570,1765442241443,-48.13654954,0.00015561,2]
[398232571,1765442241465,-176.92380103,0.00015561,2]
[398232572,1765442245716,-71.79151718,0.00015561,2]
[398232573,1765442245737,-102.67430443,0.00015561,2]
[398232574,1765442247184,-155.24348055,0.00015561,2]
[398232575,1765442247208,-57.01176233,0.00015561,2]
[398232576,1765442272954,-250.0,0.00015483,2]
[398232577,1765442276313,-321.41581975,0.00015483,2]
[398232578,1765442278481,-157.49246949,0.00015483,2]
[398232579,1765442280488,-241.38114695,0.00015483,2]
[398232580,1765442364082,-42.50160781,0.00015483,2]
[398232581,1765442364115,-210.4489807,0.00015561,2]
[398232582,1765442364147,-195.0,0.000157,2]
[398232583,1765442364179,-500.0,0.00015799,2]
[398232584,1765442364212,-1200.0,0.00015838,2]
[398232585,1765442364248,-158.0,0.00015838,2]
[398232586,1765442364282,-300.0,0.00015838,2]
[398232587,1765442364430,-4788.10882298,0.00015839,2]
[398232588,1765442364445,-10000.01,0.00015839,2]
[398232589,1765442369993,-358.20607558,0.00015839,2]
[398232590,1765442370022,-300.0,0.00015899,2]
[398232591,1765442370071,-8683.59784884,0.000159,2]
[398232592,1765442370099,-10000.01,0.000159,2]
[398232593,1765442376080,-10000.01,0.000159,2]
[398232594,1765442382303,-10000.01,0.00015839,2]
[398232599,1765442526214,-300.0,0.00015838,2]
[398232600,1765442526245,-1200.0,0.00015838,2]
[398232601,1765442526273,-195.0,0.00015838,2]
[398232602,1765442526477,-250.0,0.00015839,2]
[398232603,1765442526565,-6110.01,0.00015839,2]
[398232604,1765442532528,-2006.5649,0.000158,2]
[398232605,1765442532556,-182.98853238,0.00015839,2]
[398232606,1765442532601,-5620.90313524,0.00015839,2]
[398232607,1765442538663,-282.0,0.00015839,2]
[398232608,1765442538690,-322.6107,0.00015839,2]
[398232609,1765442538717,-288.70593134,0.00015869,2]
[398232610,1765442538744,-200.0,0.0001589,2]
[398232611,1765442538773,-500.0,0.0001589,2]
[398232612,1765442538803,-500.0,0.0001589,2]
[398232613,1765442538832,-500.0,0.0001589,2]
[398232614,1765442538861,-151.0,0.0001589,2]
[398232615,1765442538890,-500.0,0.0001589,2]
[398232616,1765442538919,-151.0,0.0001589,2]
[398232617,1765442538948,-500.0,0.0001589,2]
[398232618,1765442538975,-151.0,0.0001589,2]
[398232619,1765442539002,-500.0,0.0001589,2]
[398232620,1765442539030,-151.0,0.0001589,2]
[398232621,1765442539060,-105.37673732,0.0001589,2]
[398232622,1765442539290,-394.62326268,0.0001589,2]
[398232623,1765442541845,-151.0,0.0001589,2]
[398232624,1765442541873,-500.0,0.0001589,2]
[398232625,1765442541904,-151.0,0.0001589,2]
[398232626,1765442541932,-151.0,0.0001589,2]
[398232627,1765442541962,-183.11868399,0.0001589,2]
[398232628,1765442541990,-151.0,0.0001589,2]
[398232629,1765442542020,-1599.0,0.0001589,2]
[398232630,1765442542048,-151.0,0.0001589,2]
[398232631,1765442542078,-151.0,0.0001589,2]
[398232632,1765442542110,-151.0,0.0001589,2]
[398232633,1765442542138,-200.0,0.0001589,2]
[398232634,1765442542166,-151.0,0.0001589,2]
[398232635,1765442542195,-500.0,0.0001589,2]
[398232636,1765442542224,-500.0,0.0001589,2]
[398232637,1765442542253,-151.0,0.0001589,2]
[398232638,1765442542674,-317.77263202,0.0001589,2]
[398232639,1765442543041,-182.22736798,0.0001589,2]
[398232640,1765442543064,-159.83336598,0.0001589,2]
[398232641,1765442548023,-340.16663402,0.0001589,2]
[398232642,1765442548057,-151.0,0.0001589,2]
[398232643,1765442548087,-500.0,0.0001589,2]
[398232644,1765442548115,-500.0,0.0001589,2]
[398232645,1765442548143,-151.0,0.0001589,2]
[398232646,1765442548172,-500.0,0.0001589,2]
[398232647,1765442548201,-500.0,0.0001589,2]
[398232648,1765442548230,-151.0,0.0001589,2]
[398232649,1765442548263,-200.0,0.0001589,2]
[398232650,1765442548293,-500.0,0.0001589,2]
[398232651,1765442548324,-500.0,0.0001589,2]
[398232652,1765442548354,-151.0,0.0001589,2]
[398232653,1765442548384,-500.0,0.0001589,2]
[398232654,1765442548414,-211.67673196,0.0001589,2]
[398232655,1765442548655,-288.32326804,0.0001589,2]
[398232656,1765442557974,-200.0,0.00015561,2]
[398232657,1765442557998,-100.0,0.00015561,2]
[398232658,1765442561068,-107.4,0.00015561,2]
[398232659,1765442561090,-95.35679959,0.00015561,2]
[398232660,1765442563219,-119.71700041,0.00015561,2]
[398232661,1765442563249,-158.86717984,0.00015561,2]
[398232662,1765442569225,-64.16435076,0.00015561,2]
[398232663,1765442569247,-227.05400526,0.00015561,2]
[398232664,1765442571462,-4.22969197,0.00015561,2]
[398232665,1765442571483,-239.84119403,0.00015561,2]
[398232666,1765442571509,-19.4122258,0.00015561,2]
[398232667,1765442634882,-290.43571445,0.00015561,2]
[398232668,1765442634904,-77.86442611,0.00015738,2]
[398232669,1765442639262,-244.83647206,0.00015738,2]
[398232670,1765442646001,-3.82510183,0.00015738,2]
[398232671,1765442646026,-300.0,0.00015844,2]
[398232672,1765442646307,-41.08985638,0.00015845,2]
[398232673,1765442650318,-496.64053203,0.00015845,2]
[398232674,1765442651852,-268.6905862,0.000158,2]
[398232675,1765442656054,-161.46972376,0.000158,2]
[398232676,1765442658105,-172.6748682,0.000158,2]
[398232677,1765442660468,-225.49571883,0.000158,2]
[398232678,1765442662065,-165.94299404,0.000158,2]
[398232679,1765442664711,-5.72610897,0.000158,2]
[398232680,1765442664733,-268.52767106,0.00015845,2]
[398232681,1765442666826,-219.45701852,0.00015845,2]
[398232682,1765442668311,-253.79686806,0.00015845,2]
[398232683,1765442669832,-306.54580141,0.00015845,2]
[398232684,1765442671301,-1000.0,0.00015845,2]
[398232685,1765442672999,-311.46861288,0.00015845,2]
[398232687,1765442676877,-335.84015202,0.00015845,2]
[398232689,1765442681100,-292.27394402,0.00015845,2]
[398232692,1765442685541,-232.50534437,0.00015845,2]
[398232694,1765442687571,-228.19632666,0.00015845,2]
[398232696,1765442690063,-196.37901412,0.00015845,2]
[398232697,1765442691592,-415.02405716,0.00015845,2]
[398232699,1765442691927,-966.06279004,0.00015845,2]
[398232700,1765442691950,-8067.88441992,0.00015845,2]
[398232701,1765442692117,-1200.0,0.00015889,2]
[398232702,1765442692148,-151.0,0.0001589,2]